{"text_format":"1","workbook":"xlsx","n_sheets":5,"sheets":["Daten_Kennz1","Kennz2","Kennz2_L","Kennz3","Kennz3_L"],"not_rendered":{"charts":0,"images":3,"macros":1,"external_links":0,"defined_names":29,"comments":0,"pivot_tables":0},"unopened":[],"bounds":{"document_bytes":16777216,"sheet_cells":100000,"rows_first":2000,"rows_last":500,"rows_between":2000,"halvings":0,"cell_chars":16384,"cell_head_chars":4096},"cells_cut":0,"cells_raw":0,"read":"whole","date_system":"1900"}

{"sheet":"Daten_Kennz1","index":0,"n_rows":56,"n_cols":10,"rows_kept":56,"cut":false,"hidden":false,"merged":[[49,4,49,5],[53,4,53,5],[54,4,54,5],[55,4,55,5],[45,6,45,7],[41,4,41,5],[46,4,46,5],[47,4,47,5],[48,4,48,5],[33,4,33,5],[34,4,34,5],[35,4,35,5],[39,4,39,5],[40,4,40,5],[26,4,26,5],[27,4,27,5],[17,5,17,10],[18,5,18,10],[32,4,32,5],[15,5,15,10],[16,5,16,10],[22,4,22,5],[24,4,24,5],[25,4,25,5],[10,5,10,10],[11,5,11,10],[12,5,12,10],[13,5,13,10],[14,5,14,10]]}
[]
[]
[null,null,"Lernmodul M 04:"]
[null,null,"Betriebswirtschaftliche Kennzahlen"]
[]
[null,null,"Thema: Bildung von Kennzahlen"]
[]
[null,null,"Die Betriebswirtin Annett W. erhält die Aufgabe, aus den nachfolgend aufgeführten Daten sinnvolle Kennzahlen"]
[null,null,"zu ermitteln und diese Kennzahlen nach ihren Merkmalen den folgenden Kennzahlentypen zuzuordnen:"]
[]
[null,null,null,"Kurzzeichen","Kennzahlentyp","Merkmal"]
[null,null,null,"A01","Absolute Kennzahlen","Drücken einen betriebswirtschaftlichen Sachverhalt nur in einer (absoluten) Zahl aus."]
[null,null,null,"A02","Gliederungszahlen","Bestimmen eine Teilmasse in Relation zu einer Gesamtmasse. "]
[null,null,null,"A03","Beziehungszahlen","Setzen zwei unterschiedliche Sachverhalte (mit absoluten Größen) in Zusammenhang."]
[null,null,null,"A04","Messzahlen","Setzen gleichartige, aber zeitlich oder räumlich verschiedene Massen miteinander in Beziehung. "]
[null,null,null,"A05","Indexzahlen","Indexzahlen (Messzahlen) zeigen die zeitlichen Entwicklung betriebswirtschaftlicher Größen an."]
[null,null,null,"B01","Wirtschaftlichkeit","Kennzeichnung des Verhältnisses zwischen Werteausstoß (Output) und Werteeinsatz (Input)."]
[null,null,null,"B02","Rentabilität","Kennzeichnung der Gewinnergiebigkeit des Umsatzprozesses von Unternehmen."]
[null,null,null,"B03","Produktivität","Kennzeichnung des Wirkungsgrades des Einsatzes von Ressorcen (Personal.Maschinen)."]
[]
[null,null,null,"Daten zur Aufgabe:"]
[]
[null,null,null,"Nr.","Kennzahl",null,"Maßeinheit","Jahr 1","Jahr 2"]
[null,null,null,1,"Umsatz selbst hergestellter Erzeugnisse",null,"1000 EUR",520,590]
[null,null,null,{"$f":"D24+1","v":2},"Umsatz Handelswaren",null,"1000 EUR",180,240]
[null,null,null,{"$f":"D25+1","v":3},"Wareneinsatz",null,"1000 EUR",110,130]
[null,null,null,{"$f":"D26+1","v":4},"durchschnittl. Beschäftigte",null,"Personen",16,18]
[null,null,null,{"$f":"D27+1","v":5},"Selbstkosten gesamt",null,"1000 EUR",570,680]
[]
[null,null,null,"Bildung von Kennzahlen:"]
[]
[null,null,null,"a) Absolute Kennzahlen (Typ A 01)"]
[null,null,null,"Nr.","Kennzahl",null,"Jahr 1","Jahr 2"," Veränderung auf ... [%]","Veränderung um ... [%]"]
[null,null,null,1,"Umsatz gesamt [1000 EUR]  (Z. 1 + Z. 2)"]
[null,null,null,{"$f":"D34+1","v":2},"Roherlös  Waren [1000 EUR]  (Z. 2 - Z. 3)"]
[null,null,null,{"$f":"D35+1","v":3},"Betriebsergebnis [1000 EUR] (Z. 1 + Z. 2 - Z.5)"]
[]
[]
[null,null,null,"b) Gliederungskennzahlen (Typ A 02)"]
[null,null,null,"Nr.","Kennzahl",null,"Jahr 1","Jahr 2"," Veränderung auf ... [%]","Veränderung um ... [%]"]
[null,null,null,4,"Anteil selbst erstellter Produkte am Gesamt-Umsatz [%]"]
[null,null,null,5,"Anteil Umsatz Handelswaren am Gesamtumsatz [%]"]
[]
[]
[]
[null,null,null,"a) Absolute Kennzahlen (Typ A 01)",null,null,"Musterlösung"]
[null,null,null,"Nr.","Kennzahl",null,"Jahr 1","Jahr 2"," Veränderung auf ... [%]","Veränderung um ... [%]"]
[null,null,null,1,"Umsatz gesamt [1000 EUR]  (Z. 1 + Z. 2)",null,{"$f":"H24+H25","v":700},{"$f":"I24+I25","v":830},{"$f":"H48*100/G48","v":118.57142857142857},{"$f":"H48*100/G48-100","v":18.571428571428569}]
[null,null,null,{"$f":"D48+1","v":2},"Roherlös  Waren [1000 EUR]  (Z. 2 - Z. 3)",null,{"$f":"H25-H26","v":70},{"$f":"I25-I26","v":110},{"$f":"H49*100/G49","v":157.14285714285714},{"$f":"H49*100/G49-100","v":57.142857142857139}]
[null,null,null,{"$f":"D49+1","v":3},"Betriebsergebnis [1000 EUR] (Z. 1 + Z. 2 - Z.5)",null,{"$f":"H24+H25-H28","v":130},{"$f":"I24+I25-I28","v":150},{"$f":"H50*100/G50","v":115.38461538461539},{"$f":"H50*100/G50-100","v":15.384615384615387}]
[]
[]
[null,null,null,"b) Gliederungskennzahlen (Typ A 02)"]
[null,null,null,"Nr.","Kennzahl",null,"Jahr 1","Jahr 2"," Veränderung auf ... [%]","Veränderung um ... [%]"]
[null,null,null,4,"Anteil selbst erstellter Produkte am Gesamt-Umsatz [%]",null,{"$f":"H24*100/G48","v":74.285714285714292},{"$f":"I24*100/H48","v":71.084337349397586},{"$f":"H55*100/G55","v":95.690454124189046},{"$f":"H55*100/G55-100","v":-4.3095458758109544}]
[null,null,null,{"$f":"D55+1","v":5},"Anteil Umsatz Handelswaren am Gesamtumsatz [%]",null,{"$f":"H25*100/G48","v":25.714285714285715},{"$f":"I25*100/H48","v":28.91566265060241},{"$f":"H56*100/G56","v":112.44979919678715},{"$f":"H56*100/G56-100","v":12.449799196787154}]

{"sheet":"Kennz2","index":1,"n_rows":59,"n_cols":10,"rows_kept":59,"cut":false,"hidden":false,"merged":[[36,4,36,5],[37,4,37,5],[57,6,57,7],[58,4,58,5],[49,4,49,5],[52,4,52,5],[53,4,53,5],[40,4,40,5],[41,4,41,5],[44,4,44,5],[45,4,45,5],[48,4,48,5],[26,4,26,5],[27,4,27,5],[32,4,32,5],[33,4,33,5],[16,5,16,10],[17,5,17,10],[18,5,18,10],[22,4,22,5],[24,4,24,5],[25,4,25,5],[15,5,15,10],[10,5,10,10],[11,5,11,10],[12,5,12,10],[13,5,13,10],[14,5,14,10]]}
[]
[]
[null,null,"Lernmodul M 04:"]
[null,null,"Betriebswirtschaftliche Kennzahlen"]
[]
[null,null,"Thema: Bildung von Kennzahlen"]
[]
[null,null,"Die Betriebswirtin Annett W. erhält die Aufgabe, aus den nachfolgend aufgeführten Daten sinnvolle Kennzahlen"]
[null,null,"zu ermitteln und diese Kennzahlen nach ihren Merkmalen den folgenden Kennzahlentypen zuzuordnen:"]
[]
[null,null,null,"Kurzzeichen","Kennzahlentyp","Merkmal"]
[null,null,null,"A01","Absolute Kennzahlen","Drücken einen betriebswirtschaftlichen Sachverhalt nur in einer (absoluten) Zahl aus."]
[null,null,null,"A02","Gliederungszahlen","Bestimmen eine Teilmasse in Relation zu einer Gesamtmasse. "]
[null,null,null,"A03","Beziehungszahlen","Setzen zwei unterschiedliche Sachverhalte (mit absoluten Größen) in Zusammenhang."]
[null,null,null,"A04","Messzahlen","Setzen gleichartige, aber zeitlich oder räumlich verschiedene Massen miteinander in Beziehung. "]
[null,null,null,"A05","Indexzahlen","Indexzahlen (Messzahlen) zeigen die zeitlichen Entwicklung betriebswirtschaftlicher Größen an."]
[null,null,null,"B01","Wirtschaftlichkeit","Kennzeichnung des Verhältnisses zwischen Werteausstoß (Output) und Werteeinsatz (Input)."]
[null,null,null,"B02","Rentabilität","Kennzeichnung der Gewinnergiebigkeit des Umsatzprozesses von Unternehmen."]
[null,null,null,"B03","Produktivität","Kennzeichnung des Wirkungsgrades des Einsatzes von Ressorcen (Personal.Maschinen)."]
[]
[null,null,null,"Daten zur Aufgabe:"]
[]
[null,null,null,"Nr.","Kennzahl",null,"Maßeinheit","Jahr 1","Jahr 2"]
[null,null,null,1,"Umsatz selbst hergestellter Erzeugnisse",null,"1000 EUR",520,590]
[null,null,null,{"$f":"D24+1","v":2},"Umsatz Handelswaren",null,"1000 EUR",180,240]
[null,null,null,{"$f":"D25+1","v":3},"Wareneinsatz",null,"1000 EUR",110,130]
[null,null,null,{"$f":"D26+1","v":4},"durchschnittl. Beschäftigte",null,"Personen",16,18]
[null,null,null,{"$f":"D27+1","v":5},"Selbstkosten gesamt",null,"1000 EUR",570,680]
[]
[null,null,null,"Bildung von Kennzahlen:"]
[]
[null,null,null,"c) Beziehungszahlen (Typ A 03)"]
[null,null,null,"Nr.","Kennzahl",null,"Jahr 1","Jahr 2"," Veränderung auf ... [%]","Veränderung um ... [%]"]
[null,null,null,1,"Selbstkosten je Beschäftigter [EUR/Pers.)"]
[]
[null,null,null,"d) Messzahlen (Typ A 04)"]
[null,null,null,"Nr.","Kennzahl",null,"Jahr 1","Jahr 2 "," Veränderung auf ... [%]","Veränderung um ... [%]"]
[null,null,null,1,"Kostensatz [EUR/100 EUR] (Selbstkosten zu Umsatz)"]
[]
[null,null,null,"e) Indexzahlen (Typ A 05)"]
[null,null,null,"Nr.","Kennzahl",null,"Jahr 1","Jahr 2"," Veränderung auf ... [%]","Veränderung um ... [%]"]
[null,null,null,1,"Veränderung der Beschäftigten [%]"]
[]
[null,null,null,"f) Wirtschaftlichkeit (Typ B 01)"]
[null,null,null,"Nr.","Kennzahl",null,"Jahr 1","Jahr 2"," Veränderung auf ... [%]","Veränderung um ... [%]"]
[null,null,null,1,"Umsatz gesamt (Output) zu Selbstkosten (Input) [EUR/ 100 EUR]"]
[]
[null,null,null,"g) Rentabilität (Typ B 02)"]
[null,null,null,"Nr.","Kennzahl",null,"Jahr 1","Jahr 2"," Veränderung auf ... [%]","Veränderung um ... [%]"]
[null,null,null,1,"Umsatzrentabilität (Betriebsergebnis zu Umsatz gesamt) [%]"]
[]
[null,null,null,"h) Produktivität (Typ B 03)"]
[null,null,null,"Nr.","Kennzahl",null,"Jahr 1","Jahr 2"," Veränderung auf ... [%]","Veränderung um ... [%]"]
[null,null,null,1,"Umsatz gesamt je Beschäftigter [EUR/Pers.]"]
[]
[]
[]
[null,null,null,"a) Absolute Kennzahlen (Typ A 01)",null,null,"Musterlösung"]
[null,null,null,"Nr.","Kennzahl",null,"Jahr 1","Jahr 2"," Veränderung auf ... [%]","Veränderung um ... [%]"]

{"sheet":"Kennz2_L","index":2,"n_rows":59,"n_cols":10,"rows_kept":59,"cut":false,"hidden":true,"merged":[[52,4,52,5],[53,4,53,5],[57,6,57,7],[58,4,58,5],[40,4,40,5],[41,4,41,5],[44,4,44,5],[45,4,45,5],[48,4,48,5],[49,4,49,5],[37,4,37,5],[16,5,16,10],[17,5,17,10],[18,5,18,10],[22,4,22,5],[24,4,24,5],[25,4,25,5],[26,4,26,5],[27,4,27,5],[32,4,32,5],[33,4,33,5],[36,4,36,5],[15,5,15,10],[10,5,10,10],[11,5,11,10],[12,5,12,10],[13,5,13,10],[14,5,14,10]]}
[]
[]
[null,null,"Lernmodul M 04:"]
[null,null,"Betriebswirtschaftliche Kennzahlen"]
[]
[null,null,"Thema: Bildung von Kennzahlen"]
[]
[null,null,"Die Betriebswirtin Annett W. erhält die Aufgabe, aus den nachfolgend aufgeführten Daten sinnvolle Kennzahlen"]
[null,null,"zu ermitteln und diese Kennzahlen nach ihren Merkmalen den folgenden Kennzahlentypen zuzuordnen:"]
[]
[null,null,null,"Kurzzeichen","Kennzahlentyp","Merkmal"]
[null,null,null,"A01","Absolute Kennzahlen","Drücken einen betriebswirtschaftlichen Sachverhalt nur in einer (absoluten) Zahl aus."]
[null,null,null,"A02","Gliederungszahlen","Bestimmen eine Teilmasse in Relation zu einer Gesamtmasse. "]
[null,null,null,"A03","Beziehungszahlen","Setzen zwei unterschiedliche Sachverhalte (mit absoluten Größen) in Zusammenhang."]
[null,null,null,"A04","Messzahlen","Setzen gleichartige, aber zeitlich oder räumlich verschiedene Massen miteinander in Beziehung. "]
[null,null,null,"A05","Indexzahlen","Indexzahlen (Messzahlen) zeigen die zeitlichen Entwicklung betriebswirtschaftlicher Größen an."]
[null,null,null,"B01","Wirtschaftlichkeit","Kennzeichnung des Verhältnisses zwischen Werteausstoß (Output) und Werteeinsatz (Input)."]
[null,null,null,"B02","Rentabilität","Kennzeichnung der Gewinnergiebigkeit des Umsatzprozesses von Unternehmen."]
[null,null,null,"B03","Produktivität","Kennzeichnung des Wirkungsgrades des Einsatzes von Ressorcen (Personal.Maschinen)."]
[]
[null,null,null,"Daten zur Aufgabe:"]
[]
[null,null,null,"Nr.","Kennzahl",null,"Maßeinheit","Jahr 1","Jahr 2"]
[null,null,null,1,"Umsatz selbst hergestellter Erzeugnisse",null,"1000 EUR",520,590]
[null,null,null,{"$f":"D24+1","v":2},"Umsatz Handelswaren",null,"1000 EUR",180,240]
[null,null,null,{"$f":"D25+1","v":3},"Wareneinsatz",null,"1000 EUR",110,130]
[null,null,null,{"$f":"D26+1","v":4},"durchschnittl. Beschäftigte",null,"Personen",16,18]
[null,null,null,{"$f":"D27+1","v":5},"Selbstkosten gesamt",null,"1000 EUR",570,680]
[]
[null,null,null,"Bildung von Kennzahlen:"]
[]
[null,null,null,"c) Beziehungszahlen (Typ A 03)"]
[null,null,null,"Nr.","Kennzahl",null,"Jahr 1","Jahr 2"," Veränderung auf ... [%]","Veränderung um ... [%]"]
[null,null,null,1,"Selbstkosten je Beschäftigter [EUR/Pers.)",null,{"$f":"H28*1000/H27","v":35625},{"$f":"I28*1000/I27","v":37777.777777777781},{"$f":"H34*100/G34","v":106.04288499025341},{"$f":"H34*100/G34-100","v":6.0428849902534125}]
[]
[null,null,null,"d) Messzahlen (Typ A 04)"]
[null,null,null,"Nr.","Kennzahl",null,"Jahr 1","Jahr 2 "," Veränderung auf ... [%]","Veränderung um ... [%]"]
[null,null,null,1,"Kostensatz [EUR/100 EUR] (Selbstkosten zu Umsatz)",null,{"$f":"H28*100/(H24+H25)","v":81.428571428571431},{"$f":"I28*100/(I24+I25)","v":81.92771084337349},{"$f":"H38*100/G38","v":100.61297822870429},{"$f":"H38*100/G38-100","v":0.61297822870429286}]
[]
[null,null,null,"e) Indexzahlen (Typ A 05)"]
[null,null,null,"Nr.","Kennzahl",null,"Jahr 1","Jahr 2"," Veränderung auf ... [%]","Veränderung um ... [%]"]
[null,null,null,1,"Veränderung der Beschäftigten [%]",null,null,null,{"$f":"I27*100/H27","v":112.5},{"$f":"I27*100/H27-100","v":12.5}]
[]
[null,null,null,"f) Wirtschaftlichkeit (Typ B 01)"]
[null,null,null,"Nr.","Kennzahl",null,"Jahr 1","Jahr 2"," Veränderung auf ... [%]","Veränderung um ... [%]"]
[null,null,null,1,"Umsatz gesamt (Output) zu Selbstkosten (Input) [EUR/ 100 EUR]",null,{"$f":"(H24+H25)*100/H28","v":122.80701754385964},{"$f":"(I24+I25)*100/I28","v":122.05882352941177},{"$f":"H46*100/G46","v":99.390756302521012},{"$f":"H46*100/G46-100","v":-0.60924369747898766}]
[]
[null,null,null,"g) Rentabilität (Typ B 02)"]
[null,null,null,"Nr.","Kennzahl",null,"Jahr 1","Jahr 2"," Veränderung auf ... [%]","Veränderung um ... [%]"]
[null,null,null,1,"Umsatzrentabilität (Betriebsergebnis zu Umsatz gesamt) [%]",null,{"$f":"(H24+H25-H28)*100/(H24+H25)","v":18.571428571428573},{"$f":"(I24+I25-I28)*100/(I24+I25)","v":18.072289156626507},{"$f":"H50*100/G50","v":97.312326227988876},{"$f":"H50*100/G50-100","v":-2.6876737720111237}]
[]
[null,null,null,"h) Produktivität (Typ B 03)"]
[null,null,null,"Nr.","Kennzahl",null,"Jahr 1","Jahr 2"," Veränderung auf ... [%]","Veränderung um ... [%]"]
[null,null,null,1,"Umsatz gesamt je Beschäftigter [EUR/Pers.]",null,{"$f":"(H24+H25)*1000/H27","v":43750},{"$f":"(I24+I25)*1000/I27","v":46111.111111111109},{"$f":"H54*100/G54","v":105.39682539682539},{"$f":"H54*100/G54-100","v":5.3968253968253919}]
[]
[]
[]
[null,null,null,"a) Absolute Kennzahlen (Typ A 01)",null,null,"Musterlösung"]
[null,null,null,"Nr.","Kennzahl",null,"Jahr 1","Jahr 2"," Veränderung auf ... [%]","Veränderung um ... [%]"]

{"sheet":"Kennz3","index":3,"n_rows":59,"n_cols":13,"rows_kept":59,"cut":false,"hidden":false,"merged":[]}
[]
[]
[null,null,{"$f":"Daten_Kennz1!C3","v":"Lernmodul M 04:"}]
[null,null,{"$f":"Daten_Kennz1!C4","v":"Betriebswirtschaftliche Kennzahlen"}]
[]
[null,null,"Kennzahlen-Berechnung und Kennzahlen-Steuerung"]
[]
[null,null,"Problemstellung, Aufgaben:"]
[]
[null,null,"Die nachstehende Grafik (siehe \"Modell\") zeigt modellhaft wichtige betriebswirtschaftliche Zusammenhänge "]
[null,null,"im Umsatzprozess eines Unternehmens."]
[]
[null,null,"Ihre Aufgabe besteht in Folgendem:",null,null,null,null,"Nr.","Größe",null,"Merkmal"]
[null,null,"1. Kennzeichen Sie, was im betrachtenen Beispiel ",null,null,null,null,1,"Personaleinsatz"]
[null,null,null," - die zu steuernden Ergebnisgrößen (Symbol \"y\"),",null,null,null,2,"Arbeitsproduktivität"]
[null,null,null," - zu beachtende Paramter (Symbol \"k\") und",null,null,null,3,"Kostensatz"]
[null,null,null," - die eigentlichen Steuergrößen (Symbol \"u\")",null,null,null,4,"Leistung"]
[null,null,"  sein können!",null,null,null,null,5,"Erlöse aus Umsatz"]
[null,null,"Tragen Sie Ihre Antwort in die nebenstehenden Tabelle",null,null,null,null,6,"Selbstkosten"]
[null,null,"unter \"Merkmal\" mit dem entsprechenden Symbol ein!",null,null,null,null,7,"Erfolg (Gewinn/Verlust)"]
[null,null,null,null,null,null,null,8,"Absatzpotenzial"]
[]
[null,null,"2. Ermitteln Sie ferner mit Bezug auf die gegebenen Daten die Zahlenwerte für die noch offenen Größen!"]
[]
[null,null,"3. Ordnen Sie jenen Größen \"Drehfelder\"             (Menüpunkt \"Entwicklungstools, Einfügen, Formularsteuerelemente\")      "]
[null,null,"  zu, die Sie als Steuergrößen gekenzeichnet haben. Tragen Sie sodann über \"Steuerelement formatieren\" die Ausgangs-"]
[null,null," werte in die Drehfelder ein und bestimmen Sie, in welchem Bereich diese Werte veränderbar sein sollen. "]
[null,null," Versuchen Sie sodann die Werte der Steuergrößen so zu ändern, dass das Gewinnziel in Höhe von",null,null,null,null,null,null,null,1000,"  [TEUR/a]"]
[null,null,"  erreicht wird!"]
[]
[]
[null,null,"Modell:"]
[]
[null,null,null,null,null,null,"Arbeitsproduktivität",null,null,null,"Absatzpotenzial"]
[null,null,null,null,null,null,100,"        [TEUR/Pers.]",null,null,12000," [TEUR/a]"]
[]
[null,null,null,null,"Personaleinsatz",null,null,null,"Leistung"]
[]
[]
[null,null,null,null,null,null,null,null,null," [TEUR/a]"]
[null,null,null,null,100,"  [Pers./a]"]
[null,null,null,null,null,null,null,null,null,null,null,"Ausnutzung des"]
[null,null,null,null,null,null,null,null,null,null,null,"Abs.potenzials"]
[null,null,null,null,null,null,"Kostensatz",null,null,null,null,null," %"]
[null,null,null,null,null,null,90,"        [EUR Kost./100 EUR Leist.]"]
[null,null,null,null,null,null,null,null,null,null,"Erlöse"]
[null,null,null,null,null,null,null,null,null,null,null," [TEUR/a]"]
[]
[]
[null,null,null,null,null,null,"Selbstkosten"," [TEUR/a]",null,null,{"$f":"IF(K51>=0,\"Gewinn\",\"Verlust\")","v":"Gewinn"}]
[null,null,null,null,null,null,null,null,null,null,null," [TEUR/a]"]
[]
[]
[null,null,null,null,null,null,null,null,null,null,"Gewinnziel"]
[null,null,null,null,null,null,null,null,null,null,{"$f":"K28","v":1000}," [TEUR/a]"]
[]
[]
[null,null,null,null,null,null,null,null,null,null,"Abweichung"]
[null,null,null,null,null,null,null,null,null,null,{"$f":"Gewinn1-Gewinnziel1","v":-1000}," [TEUR/a]"]

{"sheet":"Kennz3_L","index":4,"n_rows":59,"n_cols":13,"rows_kept":59,"cut":false,"hidden":true,"merged":[]}
[]
[]
[null,null,{"$f":"Daten_Kennz1!C3","v":"Lernmodul M 04:"}]
[null,null,{"$f":"Daten_Kennz1!C4","v":"Betriebswirtschaftliche Kennzahlen"}]
[]
[null,null,"Kennzahlen-Berechnung und Kennzahlen-Steuerung"]
[]
[null,null,"Problemstellung, Aufgaben:"]
[]
[null,null,"Die nachstehende Grafik (siehe \"Modell\") zeigt modellhaft wichtige betriebswirtschaftliche Zusammenhänge "]
[null,null,"im Umsatzprozess eines Unternehmens."]
[]
[null,null,"Ihre Aufgabe besteht in Folgendem:",null,null,null,null,"Nr.","Größe",null,"Merkmal"]
[null,null,"1. Kennzeichen Sie, was im betrachtenen Beispiel ",null,null,null,null,1,"Personaleinsatz",null,"u"]
[null,null,null," - die zu steuernden Ergebnisgrößen (Symbol \"e\"),",null,null,null,2,"Arbeitsproduktivität",null,"u"]
[null,null,null," - zu beachtende Paramter (Symbol \"k\") und",null,null,null,3,"Kostensatz",null,"u"]
[null,null,null," - die eigentlichen Steuergrößen (Symbol \"u\")",null,null,null,4,"Leistung",null,"y"]
[null,null,"  sein können!",null,null,null,null,5,"Erlöse aus Umsatz",null,"y"]
[null,null,"Tragen Sie Ihre Antwort in die nebenstehenden Tabelle",null,null,null,null,6,"Selbstkosten",null,"y"]
[null,null,"unter \"Merkmal\" mit dem entsprechenden Symbol ein!",null,null,null,null,7,"Erfolg (Gewinn/Verlust)",null,"y"]
[null,null,null,null,null,null,null,8,"Absatzpotenzial",null,"k"]
[]
[null,null,"2. Ermitteln Sie ferner mit Bezug auf die gegebenen Daten die Zahlenwerte für die noch offenen Größen!"]
[]
[null,null,"3. Ordnen Sie jenen Größen \"Drehfelder\"             (Menüpunkt \"Entwicklungstools, Einfügen, Formularsteuerelemente\")      "]
[null,null,"  zu, die Sie als Steuergrößen gekenzeichnet haben. Tragen Sie sodann über \"Steuerelement formatieren\" die Ausgangs-"]
[null,null," werte in die Drehfelder ein und bestimmen Sie, in welchem Bereich diese Werte veränderbar sein sollen. "]
[null,null," Versuchen Sie sodann die Werte der Steuergrößen so zu ändern, dass das Gewinnziel in Höhe von",null,null,null,null,null,null,null,1000,"  [TEUR/a]"]
[null,null,"  erreicht wird!"]
[]
[]
[null,null,"Modell:"]
[]
[null,null,null,null,null,null,"Arbeitsproduktivität",null,null,null,"Absatzpotenzial"]
[null,null,null,null,null,null,100,"        [TEUR/Pers.]",null,null,12000," [TEUR/a]"]
[]
[null,null,null,null,"Personaleinsatz",null,null,null,"Leistung"]
[]
[]
[null,null,null,null,null,null,null,null,{"$f":"Personal1*arbprod1","v":10000}," [TEUR/a]"]
[null,null,null,null,100,"  [Pers./a]"]
[null,null,null,null,null,null,null,null,null,null,null,"Ausnutzung des"]
[null,null,null,null,null,null,null,null,null,null,null,"Abs.potenzials"]
[null,null,null,null,null,null,"Kostensatz",null,null,null,null,{"$f":"Erloese1*100/AbsPot1","v":83.333333333333329}," %"]
[null,null,null,null,null,null,90,"        [EUR Kost./100 EUR Leist.]"]
[null,null,null,null,null,null,null,null,null,null,"Erlöse"]
[null,null,null,null,null,null,null,null,null,null,{"$f":"I40","v":10000}," [TEUR/a]"]
[]
[]
[null,null,null,null,null,null,"Selbstkosten"," [TEUR/a]",null,null,{"$f":"IF(K51>=0,\"Gewinn\",\"Verlust\")","v":"Gewinn"}]
[null,null,null,null,null,null,{"$f":"Leistung1*kostsatz1/100","v":9000},null,null,null,{"$f":"Erloese1-Selbstkosten1","v":1000}," [TEUR/a]"]
[]
[]
[null,null,null,null,null,null,null,null,null,null,"Gewinnziel"]
[null,null,null,null,null,null,null,null,null,null,{"$f":"K28","v":1000}," [TEUR/a]"]
[]
[]
[null,null,null,null,null,null,null,null,null,null,"Abweichung"]
[null,null,null,null,null,null,null,null,null,null,{"$f":"Gewinn1-Gewinnziel1","v":0}," [TEUR/a]"]